[Event "Titled Tuesday Blitz February 15 Late 2022"]
[White "Freitag, Manfred"]
[Black "Hamley, Ryan"]
[WhiteFideId "1602004"]
[BlackFideId "30959497"]
[WhiteElo "2275"]
[BlackElo "2395"]
[Result "0-1"]
[Round "03"]
[TimeControl "180+1"]
[Date "2022.02.16"]
[WhiteClock "0:00:05"]
[BlackClock "0:00:10"]

1. e4 {[%clk 0:03:00]}  e5 {[%clk 0:02:59]} 2. Nf3 {[%clk 0:03:00]}  Nc6 {[%clk 0:03:00]} 3. Bb5 {[%clk 0:03:00]}  Nf6 {[%clk 0:02:58]} 4. O-O {[%clk 0:02:59]}  Nxe4 {[%clk 0:02:58]} 5. d4 {[%clk 0:03:00]}  Nd6 {[%clk 0:02:59]} 6. Ba4 {[%clk 0:03:00]}  e4 {[%clk 0:02:54]} 7. Re1 {[%clk 0:03:00]}  Be7 {[%clk 0:02:54]} 8. Ne5 {[%clk 0:03:00]}  O-O {[%clk 0:02:54]} 9. Nc3 {[%clk 0:03:00]}  Bf6 {[%clk 0:02:48]} 10. Bf4 {[%clk 0:02:59]}  Re8 {[%clk 0:02:47]} 11. Nxe4 {[%clk 0:02:56]}  Nf5 {[%clk 0:02:32]} 12. Nxc6 {[%clk 0:02:42]}  dxc6 {[%clk 0:02:31]} 13. Nxf6+ {[%clk 0:02:42]}  gxf6 {[%clk 0:02:29]} 14. Rxe8+ {[%clk 0:02:19]}  Qxe8 {[%clk 0:02:29]} 15. c3 {[%clk 0:02:12]}  Be6 {[%clk 0:02:12]} 16. Bc2 {[%clk 0:02:08]}  Qd7 {[%clk 0:02:11]} 17. Qh5 {[%clk 0:02:03]}  Kh8 {[%clk 0:01:38]} 18. g4 {[%clk 0:01:57]}  Rg8 {[%clk 0:01:37]} 19. h3 {[%clk 0:01:52]}  Rg7 {[%clk 0:01:35]} 20. Re1 {[%clk 0:01:48]}  Nd6 {[%clk 0:01:26]} 21. f3 {[%clk 0:01:36]}  Nc4 {[%clk 0:01:16]} 22. Qh6 {[%clk 0:01:25]}  Qd8 {[%clk 0:00:48]} 23. Bb3 {[%clk 0:00:58]}  Rg6 {[%clk 0:00:43]} 24. Qh4 {[%clk 0:00:56]}  Qd5 {[%clk 0:00:41]} 25. Kf2 {[%clk 0:00:49]}  c5 {[%clk 0:00:32]} 26. Bc2 {[%clk 0:00:42]}  f5 {[%clk 0:00:22]} 27. b3 {[%clk 0:00:30]}  Nd6 {[%clk 0:00:19]} 28. Re5 {[%clk 0:00:25]}  Qc6 {[%clk 0:00:16]} 29. gxf5 {[%clk 0:00:09]}  Nxf5 {[%clk 0:00:07]} 30. Qd8+ {[%clk 0:00:09]}  Kg7 {[%clk 0:00:07]} 31. d5 {[%clk 0:00:08]}  Qd6 {[%clk 0:00:06]} 32. Rxe6 {[%clk 0:00:05]}  Qxd8 {[%clk 0:00:06]} 33. Be5+ {[%clk 0:00:05]}  f6 {[%clk 0:00:05]} 34. Bxf5 {[%clk 0:00:02]}  fxe5 {[%clk 0:00:05]} 35. Bxg6 {[%clk 0:00:03]}  hxg6 {[%clk 0:00:06]} 36. Rxe5 {[%clk 0:00:03]}  Qd6 {[%clk 0:00:06]} 37. f4 {[%clk 0:00:04]}  Qf6 {[%clk 0:00:06]} 38. Kf3 {[%clk 0:00:04]}  Qh4 {[%clk 0:00:07]} 39. c4 {[%clk 0:00:04]}  Qxh3+ {[%clk 0:00:07]} 40. Ke4 {[%clk 0:00:05]}  Qg2+ {[%clk 0:00:07]} 41. Ke3 {[%clk 0:00:06]}  Kf6 {[%clk 0:00:06]} 42. Re6+ {[%clk 0:00:05]}  Kf5 {[%clk 0:00:07]} 43. Re5+ {[%clk 0:00:06]}  Kf6 {[%clk 0:00:07]} 44. Re6+ {[%clk 0:00:06]}  Kf7 {[%clk 0:00:08]} 45. Re5 {[%clk 0:00:06]}  Qxa2 {[%clk 0:00:08]} 46. Ke4 {[%clk 0:00:04]}  Qxb3 {[%clk 0:00:08]} 47. d6 {[%clk 0:00:04]}  Qxc4+ {[%clk 0:00:08]} 48. Kf3 {[%clk 0:00:04]}  cxd6 {[%clk 0:00:08]} 49. Re4 {[%clk 0:00:04]}  Qxe4+ {[%clk 0:00:08]} 50. Kxe4 {[%clk 0:00:04]}  Ke6 {[%clk 0:00:08]} 51. f5+ {[%clk 0:00:04]}  gxf5+ {[%clk 0:00:09]} 52. Kf4 {[%clk 0:00:05]}  Kf6 {[%clk 0:00:10]} 0-1


[Site "https://www.chess.com"]

[Event "Titled Tuesday Blitz February 15 Late 2022"]
[White "Galchenko, Matvey"]
[Black "Zhurbinsky, David"]
[WhiteFideId "24175480"]
[BlackFideId "2072904"]
[WhiteElo "2453"]
[BlackElo "2539"]
[Result "1-0"]
[Round "03"]
[TimeControl "180+1"]
[Date "2022.02.16"]
[WhiteClock "0:00:37"]
[BlackClock "0:00:48"]

1. f4 {[%clk 0:02:58]}  Nf6 {[%clk 0:02:58]} 2. Nf3 {[%clk 0:02:40]}  b6 {[%clk 0:02:57]} 3. g3 {[%clk 0:02:40]}  Bb7 {[%clk 0:02:58]} 4. Bg2 {[%clk 0:02:41]}  e6 {[%clk 0:02:57]} 5. O-O {[%clk 0:02:42]}  Be7 {[%clk 0:02:57]} 6. d3 {[%clk 0:02:43]}  O-O {[%clk 0:02:57]} 7. Nc3 {[%clk 0:02:44]}  d6 {[%clk 0:02:56]} 8. e4 {[%clk 0:02:44]}  Nbd7 {[%clk 0:02:56]} 9. Qe2 {[%clk 0:02:45]}  Ne8 {[%clk 0:02:50]} 10. Be3 {[%clk 0:02:40]}  f5 {[%clk 0:02:50]} 11. Nd4 {[%clk 0:02:32]}  Nc5 {[%clk 0:02:08]} 12. exf5 {[%clk 0:02:10]}  Bxg2 {[%clk 0:02:03]} 13. Qxg2 {[%clk 0:02:11]}  Nf6 {[%clk 0:01:36]} 14. b4 {[%clk 0:02:09]}  Ng4 {[%clk 0:01:35]} 15. Rae1 {[%clk 0:01:50]}  Nxe3 {[%clk 0:01:29]} 16. Rxe3 {[%clk 0:01:51]}  Bf6 {[%clk 0:01:30]} 17. Nce2 {[%clk 0:01:35]}  Bxd4 {[%clk 0:01:21]} 18. Nxd4 {[%clk 0:01:36]}  Qf6 {[%clk 0:01:21]} 19. c3 {[%clk 0:01:09]}  Na4 {[%clk 0:01:11]} 20. Nxe6 {[%clk 0:01:04]}  Rfc8 {[%clk 0:00:55]} 21. Nxc7 {[%clk 0:00:48]}  Rab8 {[%clk 0:00:55]} 22. Nd5 {[%clk 0:00:46]}  Qf7 {[%clk 0:00:51]} 23. Ne7+ {[%clk 0:00:45]}  Kh8 {[%clk 0:00:51]} 24. Nxc8 {[%clk 0:00:46]}  Rxc8 {[%clk 0:00:52]} 25. c4 {[%clk 0:00:46]}  Qxf5 {[%clk 0:00:51]} 26. Qe4 {[%clk 0:00:45]}  Qd7 {[%clk 0:00:51]} 27. Qe6 {[%clk 0:00:38]}  Qd8 {[%clk 0:00:48]} 28. Rfe1 {[%clk 0:00:37]} 1-0


[Site "https://www.chess.com"]

[Event "Titled Tuesday Blitz February 15 Late 2022"]
[White "Gatterer, Florian"]
[Black "Samarth, J Rao"]
[WhiteFideId "811688"]
[BlackFideId "46652370"]
[WhiteElo "2218"]
[BlackElo "1514"]
[Result "0-1"]
[Round "03"]
[TimeControl "180+1"]
[Date "2022.02.16"]
[WhiteClock "0:00:22"]
[BlackClock "0:00:32"]

1. Nf3 {[%clk 0:03:00]}  d5 {[%clk 0:02:58]} 2. e3 {[%clk 0:03:00]}  Nf6 {[%clk 0:02:55]} 3. c4 {[%clk 0:03:00]}  e6 {[%clk 0:02:54]} 4. Nc3 {[%clk 0:03:00]}  c6 {[%clk 0:02:53]} 5. b3 {[%clk 0:03:00]}  Nbd7 {[%clk 0:02:51]} 6. Bb2 {[%clk 0:03:00]}  e5 {[%clk 0:02:51]} 7. Qc2 {[%clk 0:02:57]}  e4 {[%clk 0:02:50]} 8. Nd4 {[%clk 0:02:55]}  Nb8 {[%clk 0:02:46]} 9. cxd5 {[%clk 0:02:51]}  cxd5 {[%clk 0:02:40]} 10. Ncb5 {[%clk 0:02:50]}  Na6 {[%clk 0:02:40]} 11. d3 {[%clk 0:02:45]}  Bd7 {[%clk 0:02:36]} 12. Bc3 {[%clk 0:02:34]}  Rc8 {[%clk 0:02:34]} 13. Qd2 {[%clk 0:02:34]}  exd3 {[%clk 0:02:30]} 14. Bxd3 {[%clk 0:02:33]}  Nc5 {[%clk 0:02:28]} 15. Nxa7 {[%clk 0:02:00]}  Nce4 {[%clk 0:01:51]} 16. Nxc8 {[%clk 0:01:35]}  Nxd2 {[%clk 0:01:46]} 17. Bxd2 {[%clk 0:01:34]}  Qxc8 {[%clk 0:01:22]} 18. Rc1 {[%clk 0:01:32]}  Qa8 {[%clk 0:01:21]} 19. Nb5 {[%clk 0:01:30]}  Qxa2 {[%clk 0:01:09]} 20. Ke2 {[%clk 0:01:13]}  Ne4 {[%clk 0:00:58]} 21. Rc2 {[%clk 0:01:03]}  Qxb3 {[%clk 0:00:58]} 22. Nc7+ {[%clk 0:00:51]}  Kd8 {[%clk 0:00:55]} 23. Ra1 {[%clk 0:00:44]}  Qxc2 {[%clk 0:00:33]} 24. Ra8+ {[%clk 0:00:36]}  Kxc7 {[%clk 0:00:32]} 25. Bxc2 {[%clk 0:00:24]}  Nxd2 {[%clk 0:00:32]} 26. Kxd2 {[%clk 0:00:22]}  Bb4+ {[%clk 0:00:31]} 27. Kd1 {[%clk 0:00:22]}  Rxa8 {[%clk 0:00:32]} 0-1


[Site "https://www.chess.com"]

[Event "Titled Tuesday Blitz February 15 Late 2022"]
[White "Hess, Robert"]
[Black "Dubov, Daniil"]
[WhiteFideId "2022036"]
[BlackFideId "24126055"]
[WhiteElo "2557"]
[BlackElo "2791"]
[Result "0-1"]
[Round "03"]
[TimeControl "180+1"]
[Date "2022.02.15"]
[WhiteClock "0:00:04"]
[BlackClock "0:01:07"]

1. b3 {[%clk 0:03:00]}  e5 {[%clk 0:02:58]} 2. Bb2 {[%clk 0:03:01]}  Nc6 {[%clk 0:02:58]} 3. d3 {[%clk 0:03:02]}  g6 {[%clk 0:02:57]} 4. Nd2 {[%clk 0:03:02]}  Bg7 {[%clk 0:02:56]} 5. g3 {[%clk 0:03:03]}  Nge7 {[%clk 0:02:55]} 6. Bg2 {[%clk 0:03:03]}  O-O {[%clk 0:02:55]} 7. e3 {[%clk 0:03:01]}  d5 {[%clk 0:02:52]} 8. Ne2 {[%clk 0:03:01]}  h5 {[%clk 0:02:51]} 9. h3 {[%clk 0:03:00]}  Be6 {[%clk 0:02:51]} 10. a3 {[%clk 0:02:59]}  a5 {[%clk 0:02:50]} 11. Nf3 {[%clk 0:02:44]}  Qd6 {[%clk 0:02:39]} 12. d4 {[%clk 0:02:32]}  exd4 {[%clk 0:02:22]} 13. Nexd4 {[%clk 0:02:19]}  Nxd4 {[%clk 0:02:22]} 14. Bxd4 {[%clk 0:02:03]}  c5 {[%clk 0:02:21]} 15. Bxg7 {[%clk 0:01:59]}  Kxg7 {[%clk 0:02:22]} 16. O-O {[%clk 0:01:57]}  a4 {[%clk 0:02:22]} 17. Qd2 {[%clk 0:01:26]}  axb3 {[%clk 0:02:19]} 18. cxb3 {[%clk 0:01:27]}  Nc6 {[%clk 0:02:14]} 19. Rfc1 {[%clk 0:01:18]}  d4 {[%clk 0:02:03]} 20. exd4 {[%clk 0:00:58]}  Nxd4 {[%clk 0:01:56]} 21. Nxd4 {[%clk 0:00:55]}  cxd4 {[%clk 0:01:56]} 22. b4 {[%clk 0:00:46]}  Qd7 {[%clk 0:01:46]} 23. Qf4 {[%clk 0:00:33]}  Rac8 {[%clk 0:01:41]} 24. Rd1 {[%clk 0:00:16]}  Rfd8 {[%clk 0:01:39]} 25. Qe4 {[%clk 0:00:08]}  b5 {[%clk 0:01:35]} 26. h4 {[%clk 0:00:07]}  d3 {[%clk 0:01:26]} 27. Bf1 {[%clk 0:00:06]}  d2 {[%clk 0:01:23]} 28. Qe5+ {[%clk 0:00:05]}  f6 {[%clk 0:01:19]} 29. Qxb5 {[%clk 0:00:05]}  Qxb5 {[%clk 0:01:19]} 30. Bxb5 {[%clk 0:00:06]}  Bb3 {[%clk 0:01:18]} 31. Be2 {[%clk 0:00:04]}  Bxd1 {[%clk 0:01:13]} 32. Rxd1 {[%clk 0:00:05]}  Rc1 {[%clk 0:01:08]} 33. Kf1 {[%clk 0:00:05]}  Re8 {[%clk 0:01:07]} 34. Kg2 {[%clk 0:00:04]} 0-1


[Site "https://www.chess.com"]

[Event "Titled Tuesday Blitz February 15 Late 2022"]
[White "Iturrizaga Bonelli, Eduardo"]
[Black "Mirzoev, Azer"]
[WhiteFideId "3901211"]
[BlackFideId "13400304"]
[WhiteElo "2646"]
[BlackElo "2525"]
[Result "1-0"]
[Round "03"]
[TimeControl "180+1"]
[Date "2022.02.15"]
[WhiteClock "0:00:29"]
[BlackClock "0:00:03"]

1. c4 {[%clk 0:02:59]}  e6 {[%clk 0:02:58]} 2. g3 {[%clk 0:03:00]}  d5 {[%clk 0:02:58]} 3. Bg2 {[%clk 0:03:00]}  Nf6 {[%clk 0:02:59]} 4. Nf3 {[%clk 0:02:59]}  Be7 {[%clk 0:02:58]} 5. O-O {[%clk 0:02:57]}  O-O {[%clk 0:02:58]} 6. d4 {[%clk 0:02:57]}  c6 {[%clk 0:02:57]} 7. Qc2 {[%clk 0:02:57]}  b6 {[%clk 0:02:56]} 8. b3 {[%clk 0:02:57]}  Bb7 {[%clk 0:02:54]} 9. Nc3 {[%clk 0:02:57]}  Na6 {[%clk 0:02:55]} 10. Rd1 {[%clk 0:02:57]}  Nb4 {[%clk 0:02:54]} 11. Qb1 {[%clk 0:02:56]}  Rc8 {[%clk 0:02:53]} 12. e4 {[%clk 0:02:55]}  a5 {[%clk 0:02:42]} 13. a3 {[%clk 0:02:53]}  Na6 {[%clk 0:02:42]} 14. h3 {[%clk 0:02:46]}  Re8 {[%clk 0:02:35]} 15. Be3 {[%clk 0:02:46]}  h6 {[%clk 0:02:28]} 16. Ne5 {[%clk 0:02:46]}  Bf8 {[%clk 0:02:18]} 17. Qd3 {[%clk 0:02:39]}  Nb8 {[%clk 0:02:10]} 18. c5 {[%clk 0:02:15]}  bxc5 {[%clk 0:02:05]} 19. dxc5 {[%clk 0:02:16]}  Ba6 {[%clk 0:02:02]} 20. Qc2 {[%clk 0:02:15]}  Qc7 {[%clk 0:01:38]} 21. Nf3 {[%clk 0:02:10]}  Qb7 {[%clk 0:01:22]} 22. b4 {[%clk 0:02:03]}  Bc4 {[%clk 0:00:47]} 23. Nd2 {[%clk 0:02:00]}  Ba6 {[%clk 0:00:38]} 24. Nb3 {[%clk 0:01:59]}  axb4 {[%clk 0:00:38]} 25. axb4 {[%clk 0:02:00]}  Qxb4 {[%clk 0:00:32]} 26. Na5 {[%clk 0:02:00]}  d4 {[%clk 0:00:16]} 27. Bxd4 {[%clk 0:01:23]}  Nbd7 {[%clk 0:00:16]} 28. e5 {[%clk 0:00:37]}  Nd5 {[%clk 0:00:16]} 29. Ne4 {[%clk 0:00:37]}  Qb8 {[%clk 0:00:10]} 30. Nd6 {[%clk 0:00:33]}  Bxd6 {[%clk 0:00:09]} 31. exd6 {[%clk 0:00:34]}  Bb5 {[%clk 0:00:09]} 32. Rdb1 {[%clk 0:00:32]}  e5 {[%clk 0:00:06]} 33. Nxc6 {[%clk 0:00:30]}  Rxc6 {[%clk 0:00:03]} 34. Bxd5 {[%clk 0:00:30]}  Rcc8 {[%clk 0:00:03]} 35. Be3 {[%clk 0:00:29]} 1-0


[Site "https://www.chess.com"]

[Event "Titled Tuesday Blitz February 15 Late 2022"]
[White "Jacobson, Brandon"]
[Black "Bellissimo, Joseph F."]
[WhiteFideId "30901561"]
[BlackFideId "2609843"]
[WhiteElo "2362"]
[BlackElo "2061"]
[Result "1-0"]
[Round "03"]
[TimeControl "180+1"]
[Date "2022.02.16"]
[WhiteClock "0:00:19"]
[BlackClock "0:00:19"]

1. Nf3 {[%clk 0:03:00]}  Nf6 {[%clk 0:03:00]} 2. c4 {[%clk 0:03:01]}  e6 {[%clk 0:03:00]} 3. g3 {[%clk 0:03:02]}  d5 {[%clk 0:02:59]} 4. Bg2 {[%clk 0:03:03]}  Be7 {[%clk 0:02:59]} 5. O-O {[%clk 0:03:02]}  O-O {[%clk 0:03:00]} 6. d4 {[%clk 0:03:03]}  Nbd7 {[%clk 0:02:56]} 7. Qc2 {[%clk 0:03:03]}  c6 {[%clk 0:02:56]} 8. Rd1 {[%clk 0:03:03]}  b6 {[%clk 0:02:55]} 9. b3 {[%clk 0:03:03]}  Bb7 {[%clk 0:02:55]} 10. Nc3 {[%clk 0:03:04]}  Rc8 {[%clk 0:02:55]} 11. e4 {[%clk 0:03:05]}  dxe4 {[%clk 0:02:53]} 12. Nxe4 {[%clk 0:03:05]}  c5 {[%clk 0:02:52]} 13. Nxf6+ {[%clk 0:03:05]}  Bxf6 {[%clk 0:02:51]} 14. Ng5 {[%clk 0:03:06]}  g6 {[%clk 0:02:46]} 15. Bxb7 {[%clk 0:03:06]}  Rb8 {[%clk 0:02:46]} 16. Bc6 {[%clk 0:03:04]}  cxd4 {[%clk 0:02:34]} 17. Nf3 {[%clk 0:02:58]}  e5 {[%clk 0:02:34]} 18. Re1 {[%clk 0:02:45]}  Re8 {[%clk 0:02:31]} 19. Bh6 {[%clk 0:02:43]}  Qc7 {[%clk 0:02:31]} 20. Bxd7 {[%clk 0:02:43]}  Qxd7 {[%clk 0:02:32]} 21. Rad1 {[%clk 0:02:43]}  Rbd8 {[%clk 0:02:31]} 22. Qe4 {[%clk 0:02:43]}  Qe7 {[%clk 0:02:21]} 23. Qc6 {[%clk 0:02:33]}  Rd6 {[%clk 0:02:19]} 24. Qb5 {[%clk 0:02:32]}  e4 {[%clk 0:02:16]} 25. Ng5 {[%clk 0:01:54]}  a6 {[%clk 0:01:56]} 26. Qa4 {[%clk 0:01:44]}  b5 {[%clk 0:01:54]} 27. Nxe4 {[%clk 0:01:28]}  bxa4 {[%clk 0:01:49]} 28. Nxf6+ {[%clk 0:01:28]}  Rxf6 {[%clk 0:01:48]} 29. Rxe7 {[%clk 0:01:28]}  Rxe7 {[%clk 0:01:49]} 30. Bg5 {[%clk 0:01:26]}  Rfe6 {[%clk 0:01:36]} 31. Bxe7 {[%clk 0:01:25]}  Rxe7 {[%clk 0:01:37]} 32. Rxd4 {[%clk 0:01:18]}  Re2 {[%clk 0:01:28]} 33. bxa4 {[%clk 0:01:12]}  Rxa2 {[%clk 0:01:27]} 34. c5 {[%clk 0:01:12]}  Rc2 {[%clk 0:01:25]} 35. Rd5 {[%clk 0:01:04]}  Kf8 {[%clk 0:01:17]} 36. Kg2 {[%clk 0:01:03]}  Ke7 {[%clk 0:01:17]} 37. h4 {[%clk 0:01:03]}  Ke6 {[%clk 0:01:18]} 38. Rd6+ {[%clk 0:01:03]}  Ke7 {[%clk 0:01:18]} 39. Rxa6 {[%clk 0:01:00]}  Rxc5 {[%clk 0:01:18]} 40. Kf3 {[%clk 0:01:00]}  Rc3+ {[%clk 0:01:16]} 41. Kf4 {[%clk 0:00:58]}  Rc2 {[%clk 0:01:13]} 42. Kf3 {[%clk 0:00:57]}  Rc3+ {[%clk 0:01:13]} 43. Kg2 {[%clk 0:00:57]}  Ra3 {[%clk 0:01:10]} 44. a5 {[%clk 0:00:53]}  h5 {[%clk 0:01:10]} 45. Kf1 {[%clk 0:00:48]}  Ra2 {[%clk 0:01:10]} 46. Kg1 {[%clk 0:00:45]}  Ke8 {[%clk 0:01:07]} 47. Ra7 {[%clk 0:00:45]}  Kf8 {[%clk 0:01:06]} 48. Kg2 {[%clk 0:00:45]}  Ra3 {[%clk 0:01:06]} 49. a6 {[%clk 0:00:46]}  Kg7 {[%clk 0:01:05]} 50. Kf1 {[%clk 0:00:46]}  Ra2 {[%clk 0:01:05]} 51. Ke1 {[%clk 0:00:47]}  Kf6 {[%clk 0:01:03]} 52. f3 {[%clk 0:00:42]}  Ke6 {[%clk 0:00:58]} 53. Kd1 {[%clk 0:00:41]}  f6 {[%clk 0:00:54]} 54. Kc1 {[%clk 0:00:41]}  Kf5 {[%clk 0:00:51]} 55. Kb1 {[%clk 0:00:41]}  Ra3 {[%clk 0:00:48]} 56. Kb2 {[%clk 0:00:36]}  Ra5 {[%clk 0:00:46]} 57. Ra8 {[%clk 0:00:27]}  Ra4 {[%clk 0:00:41]} 58. Kc3 {[%clk 0:00:13]}  Ra3+ {[%clk 0:00:39]} 59. Kb4 {[%clk 0:00:13]}  Ra1 {[%clk 0:00:39]} 60. a7 {[%clk 0:00:13]}  Rb1+ {[%clk 0:00:39]} 61. Kc3 {[%clk 0:00:13]}  Ra1 {[%clk 0:00:36]} 62. g4+ {[%clk 0:00:11]}  hxg4 {[%clk 0:00:34]} 63. fxg4+ {[%clk 0:00:12]}  Kxg4 {[%clk 0:00:35]} 64. h5 {[%clk 0:00:13]}  Kxh5 {[%clk 0:00:29]} 65. Rh8+ {[%clk 0:00:12]}  Kg4 {[%clk 0:00:29]} 66. a8=Q {[%clk 0:00:13]}  Rxa8 {[%clk 0:00:28]} 67. Rxa8 {[%clk 0:00:14]}  f5 {[%clk 0:00:26]} 68. Kd2 {[%clk 0:00:13]}  g5 {[%clk 0:00:23]} 69. Ke2 {[%clk 0:00:13]}  Kg3 {[%clk 0:00:23]} 70. Kf1 {[%clk 0:00:12]}  f4 {[%clk 0:00:23]} 71. Ra3+ {[%clk 0:00:11]}  f3 {[%clk 0:00:22]} 72. Ra4 {[%clk 0:00:11]}  g4 {[%clk 0:00:21]} 73. Rb4 {[%clk 0:00:12]}  Kh3 {[%clk 0:00:20]} 74. Kf2 {[%clk 0:00:12]}  Kh4 {[%clk 0:00:20]} 75. Ra4 {[%clk 0:00:11]}  Kh3 {[%clk 0:00:20]} 76. Ra8 {[%clk 0:00:11]}  Kh4 {[%clk 0:00:17]} 77. Rh8+ {[%clk 0:00:12]}  Kg5 {[%clk 0:00:18]} 78. Kg3 {[%clk 0:00:13]}  Kf5 {[%clk 0:00:18]} 79. Rf8+ {[%clk 0:00:13]}  Kg5 {[%clk 0:00:17]} 80. Rf4 {[%clk 0:00:14]}  Kh5 {[%clk 0:00:16]} 81. Rxg4 {[%clk 0:00:14]}  f2 {[%clk 0:00:17]} 82. Rf4 {[%clk 0:00:14]}  Kg5 {[%clk 0:00:17]} 83. Rxf2 {[%clk 0:00:14]}  Kh5 {[%clk 0:00:18]} 84. Rf4 {[%clk 0:00:15]}  Kg5 {[%clk 0:00:18]} 85. Kf3 {[%clk 0:00:16]}  Kg6 {[%clk 0:00:19]} 86. Kg4 {[%clk 0:00:16]}  Kh6 {[%clk 0:00:19]} 87. Rf6+ {[%clk 0:00:17]}  Kg7 {[%clk 0:00:18]} 88. Kg5 {[%clk 0:00:18]}  Kg8 {[%clk 0:00:18]} 89. Kh6 {[%clk 0:00:18]}  Kh8 {[%clk 0:00:19]} 90. Rf8# {[%clk 0:00:19]} 1-0


[Site "https://www.chess.com"]

[Event "Titled Tuesday Blitz February 15 Late 2022"]
[White "Jimenez Fernandez, Rebeca"]
[Black "Kraus, Tomas"]
[WhiteFideId "32070934"]
[BlackFideId "331708"]
[WhiteElo "1853"]
[BlackElo "2389"]
[Result "0-1"]
[Round "03"]
[TimeControl "180+1"]
[Date "2022.02.16"]
[WhiteClock "0:00:01"]
[BlackClock "0:00:04"]

1. e4 {[%clk 0:03:00]}  e6 {[%clk 0:02:59]} 2. d3 {[%clk 0:03:00]}  d5 {[%clk 0:03:00]} 3. Nd2 {[%clk 0:03:00]}  Nf6 {[%clk 0:03:00]} 4. Ngf3 {[%clk 0:02:59]}  Be7 {[%clk 0:03:00]} 5. g3 {[%clk 0:02:59]}  c5 {[%clk 0:03:00]} 6. Bg2 {[%clk 0:02:59]}  Nc6 {[%clk 0:03:00]} 7. O-O {[%clk 0:03:00]}  b5 {[%clk 0:03:00]} 8. Re1 {[%clk 0:03:00]}  O-O {[%clk 0:02:59]} 9. e5 {[%clk 0:02:59]}  Nd7 {[%clk 0:03:00]} 10. Nf1 {[%clk 0:03:00]}  Qc7 {[%clk 0:02:57]} 11. Bf4 {[%clk 0:03:00]}  Bb7 {[%clk 0:02:57]} 12. h4 {[%clk 0:02:59]}  Rfc8 {[%clk 0:02:56]} 13. N1h2 {[%clk 0:03:00]}  Qd8 {[%clk 0:02:56]} 14. c3 {[%clk 0:02:55]}  a5 {[%clk 0:02:56]} 15. d4 {[%clk 0:02:50]}  b4 {[%clk 0:02:51]} 16. h5 {[%clk 0:02:47]}  h6 {[%clk 0:02:51]} 17. Ng4 {[%clk 0:02:46]}  Bf8 {[%clk 0:02:40]} 18. Qd2 {[%clk 0:02:46]}  a4 {[%clk 0:02:28]} 19. a3 {[%clk 0:02:07]}  Na5 {[%clk 0:02:19]} 20. Bxh6 {[%clk 0:02:04]}  gxh6 {[%clk 0:02:08]} 21. Nxh6+ {[%clk 0:02:05]}  Bxh6 {[%clk 0:02:08]} 22. Qxh6 {[%clk 0:02:05]}  Qf8 {[%clk 0:02:08]} 23. Qf4 {[%clk 0:02:04]}  bxc3 {[%clk 0:01:59]} 24. bxc3 {[%clk 0:02:04]}  cxd4 {[%clk 0:01:52]} 25. cxd4 {[%clk 0:02:05]}  Nb3 {[%clk 0:01:51]} 26. Rab1 {[%clk 0:02:03]}  Ba6 {[%clk 0:01:46]} 27. Bh3 {[%clk 0:02:02]}  Bd3 {[%clk 0:01:44]} 28. Rbd1 {[%clk 0:01:45]}  Be4 {[%clk 0:01:41]} 29. Ng5 {[%clk 0:01:44]}  Bc2 {[%clk 0:01:35]} 30. Nxe6 {[%clk 0:01:08]}  fxe6 {[%clk 0:01:19]} 31. Bxe6+ {[%clk 0:01:09]}  Kh8 {[%clk 0:01:19]} 32. Bxd7 {[%clk 0:01:01]}  Qxf4 {[%clk 0:01:09]} 33. gxf4 {[%clk 0:01:02]}  Rc7 {[%clk 0:01:09]} 34. e6 {[%clk 0:00:56]}  Bxd1 {[%clk 0:01:09]} 35. Rxd1 {[%clk 0:00:56]}  Rxd7 {[%clk 0:00:57]} 36. exd7 {[%clk 0:00:54]}  Rd8 {[%clk 0:00:58]} 37. Kg2 {[%clk 0:00:42]}  Rxd7 {[%clk 0:00:58]} 38. Kf3 {[%clk 0:00:41]}  Re7 {[%clk 0:00:54]} 39. Kg4 {[%clk 0:00:38]}  Re4 {[%clk 0:00:51]} 40. Kg5 {[%clk 0:00:36]}  Nxd4 {[%clk 0:00:43]} 41. Rc1 {[%clk 0:00:34]}  Ne6+ {[%clk 0:00:27]} 42. Kh6 {[%clk 0:00:28]}  Rxf4 {[%clk 0:00:22]} 43. Kg6 {[%clk 0:00:18]}  Nf8+ {[%clk 0:00:17]} 44. Kg5 {[%clk 0:00:18]}  Rxf2 {[%clk 0:00:17]} 45. Rc5 {[%clk 0:00:16]}  d4 {[%clk 0:00:17]} 46. Rd5 {[%clk 0:00:15]}  Rf3 {[%clk 0:00:15]} 47. Kg4 {[%clk 0:00:14]}  Rd3 {[%clk 0:00:13]} 48. Rd8 {[%clk 0:00:14]}  Kg7 {[%clk 0:00:11]} 49. h6+ {[%clk 0:00:13]}  Kf7 {[%clk 0:00:10]} 50. Ra8 {[%clk 0:00:06]}  Rxa3 {[%clk 0:00:09]} 51. Ra7+ {[%clk 0:00:06]}  Kg6 {[%clk 0:00:09]} 52. Ra6+ {[%clk 0:00:06]}  Kh7 {[%clk 0:00:09]} 53. Kg5 {[%clk 0:00:03]}  Rg3+ {[%clk 0:00:09]} 54. Kf4 {[%clk 0:00:03]}  Rg6 {[%clk 0:00:08]} 55. Rxa4 {[%clk 0:00:02]}  Kxh6 {[%clk 0:00:05]} 56. Ke5 {[%clk 0:00:01]}  Ne6 {[%clk 0:00:04]} 0-1


[Site "https://www.chess.com"]

[Event "Titled Tuesday Blitz February 15 Late 2022"]
[White "Josse, Mark"]
[Black "Przybylski, Wojciech"]
[WhiteFideId "414476"]
[BlackFideId "1117599"]
[WhiteElo "2255"]
[BlackElo "2133"]
[Result "0-1"]
[Round "03"]
[TimeControl "180+1"]
[Date "2022.02.16"]
[WhiteClock "0:02:19"]
[BlackClock "0:01:54"]

1. d4 {[%clk 0:03:00]}  Nf6 {[%clk 0:02:57]} 2. Nf3 {[%clk 0:03:00]}  e6 {[%clk 0:02:56]} 3. c4 {[%clk 0:03:00]}  b6 {[%clk 0:02:56]} 4. g3 {[%clk 0:02:59]}  Ba6 {[%clk 0:02:56]} 5. b3 {[%clk 0:02:59]}  Bb4+ {[%clk 0:02:55]} 6. Nbd2 {[%clk 0:02:56]}  O-O {[%clk 0:02:54]} 7. Bg2 {[%clk 0:02:57]}  d5 {[%clk 0:02:50]} 8. Qc2 {[%clk 0:02:54]}  Nbd7 {[%clk 0:02:41]} 9. O-O {[%clk 0:02:53]}  c5 {[%clk 0:02:40]} 10. Ne5 {[%clk 0:02:50]}  Rc8 {[%clk 0:02:38]} 11. Bb2 {[%clk 0:02:35]}  cxd4 {[%clk 0:02:32]} 12. Bxd4 {[%clk 0:02:32]}  Nxe5 {[%clk 0:02:17]} 13. Bxe5 {[%clk 0:02:29]}  dxc4 {[%clk 0:02:14]} 14. Nxc4 {[%clk 0:02:20]}  b5 {[%clk 0:02:05]} 15. a3 {[%clk 0:02:19]}  Be7 {[%clk 0:01:57]} 16. Rfd1 {[%clk 0:02:19]}  Qe8 {[%clk 0:01:54]} 0-1


[Site "https://www.chess.com"]